{"text_format":"1","workbook":"xlsx","n_sheets":31,"sheets":["modProv","modList00","modList01","modList02","Инструкция","Лог обновления","Титульный","Список МО","Стандарты","Ссылки на публикации","Комментарии","Проверка","AllSheetsInThisWorkbook","TEHSHEET","et_union_hor","et_union_vert","modInfo","modRegion","modReestr","modfrmReestr","modUpdTemplMain","REESTR_ORG","modClassifierValidate","modHyp","modList03","modfrmDateChoose","modComm","modThisWorkbook","REESTR_MO","modfrmReestrMR","modfrmCheckUpdates"],"not_rendered":{"charts":0,"images":21,"macros":1,"external_links":0,"defined_names":138,"comments":0,"pivot_tables":0},"unopened":[],"bounds":{"document_bytes":16777216,"sheet_cells":100000,"rows_first":2000,"rows_last":500,"rows_between":2000,"halvings":0,"cell_chars":16384,"cell_head_chars":4096},"cells_cut":0,"cells_raw":0,"read":"whole","date_system":"1900"}

{"sheet":"modProv","index":0,"n_rows":0,"n_cols":0,"rows_kept":0,"cut":false,"hidden":true,"merged":[]}

{"sheet":"modList00","index":1,"n_rows":0,"n_cols":0,"rows_kept":0,"cut":false,"hidden":true,"merged":[]}

{"sheet":"modList01","index":2,"n_rows":0,"n_cols":0,"rows_kept":0,"cut":false,"hidden":true,"merged":[]}

{"sheet":"modList02","index":3,"n_rows":0,"n_cols":0,"rows_kept":0,"cut":false,"hidden":true,"merged":[]}

{"sheet":"Инструкция","index":4,"n_rows":102,"n_cols":27,"rows_kept":102,"cut":false,"hidden":false,"merged":[[82,4,82,6],[78,4,78,23],[79,4,79,7],[101,5,101,23],[99,5,99,18],[80,4,80,6],[80,7,80,23],[81,4,81,6],[83,7,83,23],[82,7,82,23],[81,7,81,23],[97,4,97,23],[58,7,58,23],[39,4,39,23],[70,4,70,23],[60,7,60,23],[79,8,79,23],[76,4,76,23],[73,4,73,23],[1,1,1,6],[2,1,2,2],[4,1,4,24],[6,4,18,23],[20,5,20,12],[20,15,20,23],[21,15,21,23],[34,4,38,23],[57,4,57,6],[75,4,75,23],[45,4,56,23],[69,4,69,23],[71,4,71,23],[57,7,57,23],[21,5,21,12],[40,4,44,23],[22,15,22,22],[59,7,59,23],[74,4,74,23],[59,4,59,6],[72,4,72,23],[58,4,58,6]]}
[null,null,null,null,null,null,null,null,null,null,null,null,null,null,null,null,null,null,null,null,null,null,null,null,null,null," (требуется обновление)"]
[null,{"$f":"\"Код шаблона: \" & GetCode()","v":"Код шаблона: JKH.OPEN.INFO.REQUEST.HVS"}]
[null,{"$f":"\"Версия \" & GetVersion()","v":"Версия 2.1.5"}]
[]
[null,"Предложение об установлении тарифов в сфере холодного водоснабжения и о способах приобретения, стоимости и объемах товаров, необходимых для производства регулируемых товаров и (или) оказания регулируемых услуг"]
[]
[null,null,null,null,"• На рабочем месте должен быть установлен MS Office 2003 SP3, 2007 SP3, 2010 с полной версией MS Excel\n\n• Макросы во время работы должны быть включены (!)\n\n• Для корректной работы отчёта требуется выбрать низкий уровень безопасности\n(В меню MS Excel 2003: Сервис | Макрос | Безопасность | выбрать пункт «Низкая безопасность» | OK)\n(В меню MS Excel 2007/2010: Параметры Excel | Центр управления безопасностью | Параметры центра управления безопасностью | Параметры макросов | Включить все макросы | ОК)\n\n• Если Вы работаете в табличном процессоре MS Excel 2007 и выше, то можете использовать для работы формат XLSM (Книга Excel с поддержкой макросов). При работе в формате XLSM заметно быстрее происходит сохранение файла, а также уменьшается размер по сравнению с форматом XLS\n\n• Не рекомендуется снимать защиту с листов и каким-либо образом модифицировать защищаемые формулы и расчётные поля, в противном случае, отчёт будет отклонён системой\n\n• При сохранении не следует выбирать формат XLSX (Книга Excel), так как в указанном формате макросы, необходимые для работы отчёта, безвозвратно удаляются"]
[]
[]
[]
[]
[]
[]
[]
[]
[]
[]
[]
[]
[]
[null,null,null,null,"A"," - необязательные для заполнения",null,null,null,null,null,null,null,null,"A"," - с формулами и константами"]
[null,null,null,null,"A"," - обязательные для заполнения",null,null,null,null,null,null,null,null,"A"," - с выбором значений до двойному клику,"]
[null,null,null,null,null,null,null,null,null,null,null,null,null,null,null,"либо с возможностью выбора даты из календаря или ручного ввода"]
[]
[]
[]
[]
[]
[]
[]
[]
[]
[]
[]
[null,null,null,null,"Если в предложенном Вам списке необходимая организация, МР/МО отсутствуют, обновите реестры с помощью кнопок\n\nВ результате синхронизации с базой данных список организаций (МР/МО) будет заменён актуальным (механизм синхронизации требует подключения к сети Интернет и основан на использовании протокола HTTPS (TCP порт 443))\n\nЕсли после обновления Вам не удалось найти необходимую организацию в списке, обратитесь к ответственному за поддержание реестра Вашего региона. Информация о региональных органах регулирования доступна по ссылке:"]
[]
[]
[]
[]
[null,null,null,null,"http://www.fstrf.ru/regions/region/showlist"]
[]
[]
[]
[]
[]
[null,null,null,null,"• При сохранении шаблона осуществляется проверка корректности данных, в том числе на наличие значений в ячейках, обязательных для заполнения\n\n• Если какая-то ячейка не удовлетворяет условию проверки, на лист «Проверка» добавляется гиперссылка на данную ячейку и указывается причина ошибки\n\n• В колонке «Статус» для каждого сообщения возможны 2 значения: ошибка и предупреждение\n\n• При наличии сообщений со статусом «Ошибка» шаблон будет отклонён системой и не будет загружен в хранилище данных, сообщения со статусом «Предупреждение» носят информационный характер, и такой шаблон будет принят системой"]
[]
[]
[]
[]
[]
[]
[]
[]
[]
[]
[]
[null,null,null,null,"Web-сайт:",null,null,"http://support.eias.ru/index.php?a=add&catid=5"]
[null,null,null,null,"Дистрибутивы:",null,null,"http://eias.ru/?page=show_distrs"]
[null,null,null,null,null,null,null,"для устранения ошибок (например, \"Compile error in hidden module\")"]
[]
[]
[]
[]
[]
[]
[]
[]
[]
[null,null,null,null,"Принципы работы с шаблоном"]
[null,null,null,null," Перед началом работы с шаблоном Вам необходимо нажать кнопку \"Приступить к заполнению\", после чего на форме выбора выбрать из выпадающего списка нужный субъект РФ. После выбора субъекта РФ в шаблоне отобразятся листы для заполнения."]
[null,null,null,null," На листе «Титульный» нужно заполнить все ячейки голубого и синего цвета.\n Для создания печатной формы нажмите на иконку принтера на листе «Титульный» (левый верхний угол)."]
[null,null,null,null," Гиперссылки на листах вводите, не нарушая цвет ячейки (если копируете гиперссылку из браузера, то выполните двойной щелчок левой кнопки мыши по ячейке и только после этого можете вставить скопированный элемент).\n"]
[null,null,null,null," При вводе даты на расчетных листах необходимо выбрать дату из календаря (иконка справа от выбранной ячейки), либо ввести дату непосредственно в ячейку в формате - 'ДД.ММ.ГГГГ'."]
[null,null,null,null," Если какой-либо из показателей на расчетных листах для Вашей организации отсутствует, введите в поле, обязательное для заполнение, «0» (для числовых показателей) и «-» (для текстовых).\n"]
[null,null,null,null," Внимательно следите за информационными сообщениями на расчетных листах."]
[null,null,null,null," Все необходимые комментарии по всем формам Вы можете отразить на листе «Комментарии»."]
[]
[null,null,null,null,"Обосновывающие материалы (документы) необходимо загружать с помощью \"ЕИАС Мониторинг\""]
[null,null,null,null,"Инструкция",null,null,null,"http://eias.ru/files/shablon/manual_loading_through_monitoring.pdf"]
[]
[null,null,null,null,"E-mail:",null,null,"openinfo@eias.ru"]
[null,null,null,null,"Web-сайт:",null,null,"http://eias.ru/?page=show_templates"]
[]
[]
[]
[]
[]
[]
[]
[]
[]
[]
[]
[]
[]
[]
[null,null,null,null,"При наличии подключения к Интернет, можно автоматически проверять наличие доступных обновлений. Выберите способ оповещения о наличии обновлений для отчёта:"]
[]
[null,null,null,null,null,"проверять доступные обновления (рекомендуется)",null,null,null,null,null,null,null,null,null,null,null,null,null,null,null,null,null,null,null,null,"y"]
[]
[null,null,null,null,null,"никогда не проверять наличие обновлений (не рекомендуется)"]

{"sheet":"Лог обновления","index":5,"n_rows":8,"n_cols":3,"rows_kept":8,"cut":false,"hidden":true,"merged":[]}
["Дата/Время","Сообщение","Статус"]
[]
["2014-06-23T15:50:48","Проверка доступных обновлений...","Информация"]
["2014-06-23T15:50:49","Версия шаблона 2.1.5 актуальна, обновление не требуется","Информация"]
["2015-05-21T11:01:20","Проверка доступных обновлений...","Информация"]
["2015-05-21T11:01:23","Версия шаблона 2.1.5 актуальна, обновление не требуется","Информация"]
["2015-05-21T11:18:07","Проверка доступных обновлений...","Информация"]
["2015-05-21T11:18:07","Версия шаблона 2.1.5 актуальна, обновление не требуется","Информация"]

{"sheet":"Титульный","index":6,"n_rows":54,"n_cols":6,"rows_kept":54,"cut":false,"hidden":false,"merged":[[4,4,4,5]]}
[null,null,null,null,null,26816056]
[]
[]
[null,null,null,null,null,{"$f":"version","v":"Версия 2.1.5"}]
[null,null,null,null,"Предложение об установлении тарифов в сфере холодного водоснабжения и о способах приобретения, стоимости и объемах товаров, необходимых для производства регулируемых товаров и (или) оказания регулируемых услуг"]
[]
[null,null,null,null,"Субъект РФ","Ставропольский край"]
[]
[null,null,null,null,"Публикация","На сайте регулирующего органа"]
[]
[null,null,null,null,"По желанию организации информация раскрыта в дополнительных источниках публикации?","да"]
[]
["нет",null,null,null,"Указывать разбивку НВВ по полугодиям","нет"]
[]
[null,null,null,null,null,"Период регулирования"]
["01.01.2016",null,null,null,"Начало очередного периода регулирования","01.01.2016"]
["31.12.2018",null,null,null,"Окончание очередного периода регулирования","31.12.2018"]
[]
[null,null,null,null,"Является ли данное юридическое лицо подразделением (филиалом) другой организации","да"]
[]
[null,null,null,null,"Наименование организации","Северо-Кавказская дирекция по тепловодоснабжению структурное подразделение Центральной дирекции по тепловодоснабжению - филиала ОАО \"РЖД\""]
[null,null,null,null,"Наименование филиала","Северо-Кавказская дирекция по тепловодоснабжению структурное подразделение Центральной дирекции по тепловодоснабжению - филиала ОАО \"РЖД\""]
[null,null,null,null,"ИНН","7708503727"]
[null,null,null,null,"КПП","616745019"]
[]
[null,null,null,null,"Вид деятельности","Оказание услуг в сфере водоснабжения"]
[]
[null,null,null,null,"Режим налогообложения","общий"]
[]
[null,null,null,null,"Организация выполняет/планирует к выполнению инвестиционную программу","нет"]
[]
["тариф на транспортировку воды",null,null,null,"Тариф","тариф на транспортировку воды"]
[]
[null,null,null,null,"Наличие двухставочного тарифа","нет"]
[]
[null,null,null,null,"НДС (Отметка об учтенном НДС)","тариф указан без НДС для плательщиков НДС"]
[]
[null,null,null,null,null,"Адрес регулируемой организации"]
[null,null,null,null,"Юридический адрес","107174, г. Москва, ул. Новая Басманная,2"]
[null,null,null,null,"Почтовый адрес","357200, г. Минеральные Воды, ул. Октябрьская,3"]
[]
[null,null,null,null,null,"Руководитель"]
[null,null,null,null,"Фамилия, имя, отчество","Кузьменко Алексей Иванович"]
[null,null,null,null,"(код) номер телефона","Начальник Минераловодского территориального участка"]
[]
[null,null,null,null,null,"Главный бухгалтер"]
[null,null,null,null,"Фамилия, имя, отчество","Лепшакова Мархаба Хамидовна"]
[null,null,null,null,"(код) номер телефона","8 (87922) 47-8-67"]
[]
[null,null,null,null,null,"Должностное лицо, ответственное за составление формы"]
[null,null,null,null,"Фамилия, имя, отчество","Старунова Галина Александровна"]
[null,null,null,null,"Должность","Ведущий экономист"]
[null,null,null,null,"(код) номер телефона","8 (87922) 47-6-82"]
[null,null,null,null,"e-mail","galina_starunova@mail.ru"]

{"sheet":"Список МО","index":7,"n_rows":16,"n_cols":8,"rows_kept":16,"cut":false,"hidden":false,"merged":[[13,3,14,3],[13,4,14,4],[3,3,3,7],[4,3,4,7],[6,5,6,7],[7,5,7,7],[8,5,8,7]]}
[]
[]
[]
[null,null,null,"Дифференциация тарифа"]
[null,null,null,{"$f":"IF(org=0,\"Не определено\",org)","v":"Северо-Кавказская дирекция по тепловодоснабжению структурное подразделение Центральной дирекции по тепловодоснабжению - филиала ОАО \"РЖД\""}]
[]
[null,null,null,null,null,"Система коммунальной инфраструктуры"]
[null,null,null,null,"Условный порядковый номер",1]
[null,null,null,null,"Описание","Система коммунальной инфраструктуры"]
[]
[null,null,null,"№ п/п","Муниципальный район","№ п/п","Муниципальное образование","ОКТМО"]
[null,null,null,"1","2","3","4","5"]
[null,null,null,0,null,0]
[null,null,null,1,"Город Ставрополь",1,"Город Ставрополь","07701000"]
[null,null,null,null,null,null,"Добавить МО"]
[null,null,null,null,"Добавить МР"]

{"sheet":"Стандарты","index":8,"n_rows":46,"n_cols":8,"rows_kept":46,"cut":false,"hidden":false,"merged":[[47,4,47,7],[4,3,4,7],[5,3,5,7],[23,0,25,0],[23,1,25,1],[17,0,19,0],[17,1,19,1],[20,0,22,0],[20,1,22,1]]}
[]
[]
[]
[null,null,null,null,null,null,null,"Приложение 2 к приказу ФСТ России от 15 мая 2013 г. N 129, Форма 2.13, Форма 2.14"]
[null,null,null,"Предложение об установлении тарифов в сфере холодного водоснабжения и о способах приобретения, стоимости и объемах товаров, необходимых для производства регулируемых товаров и (или) оказания регулируемых услуг"]
[null,null,null,{"$f":"IF(org=0,\"Не определено\",org)","v":"Северо-Кавказская дирекция по тепловодоснабжению структурное подразделение Центральной дирекции по тепловодоснабжению - филиала ОАО \"РЖД\""}]
[]
[null,null,null,"№ п/п","Информация, подлежащая раскрытию","Значение","Ссылки на документы","Примечание"]
[null,null,null,"1","2","3","4","5"]
[null,null,null,"1","Информация о предложении регулируемой организации об установлении тарифов в сфере холодного водоснабжения на очередной период регулирования",null,null,0]
[null,null,null,"1.1","Копия утвержденной в установленном порядке инвестиционной программы (проекта инвестиционной программы)"]
[null,null,null,"1.2","Предлагаемый метод регулирования",null,null,0]
[null,"О",null,"1.2.1","с 01.01.2016 по 31.12.2016","метод индексации установленных тарифов",null,"нет"]
[null,"О",null,"1.2.2","с 01.01.2017 по 31.12.2017","метод индексации установленных тарифов",null,"нет"]
[null,"О",null,"1.2.3","с 01.01.2018 по 31.12.2018","метод индексации установленных тарифов",null,"нет"]
[null,null,null,null,"Предлагаемый метод регулирования"]
[null,null,null,"1.3","Расчетная величина тарифов",null,null,0]
["1.3.1","О",null,{"$f":"A18","v":"1.3.1"},{"$f":"\"с 01.01.2016 по 31.12.2016\" & IF(double_rate_tariff=\"да\",,\", \"&unit_tariff_single_rate)","v":"с 01.01.2016 по 31.12.2016, руб/м3"},143.72999999999999,null,"нет"]
[null,null,null,{"$f":"D18&\".1\"","v":"1.3.1.1"},{"$f":"TEHSHEET!$U$2&\", \" & unit_tariff_double_rate_p","v":"потребление, руб/м3"}]
[null,null,null,{"$f":"D18&\".2\"","v":"1.3.1.2"},{"$f":"TEHSHEET!$V$2&\", \" & unit_tariff_double_rate_c","v":"содержание,  тыс руб в месяц/м3/час"}]
["1.3.2","О",null,{"$f":"A21","v":"1.3.2"},{"$f":"\"с 01.01.2017 по 31.12.2017\" & IF(double_rate_tariff=\"да\",,\", \"&unit_tariff_single_rate)","v":"с 01.01.2017 по 31.12.2017, руб/м3"},25.89,null,"нет"]
[null,null,null,{"$f":"D21&\".1\"","v":"1.3.2.1"},{"$f":"TEHSHEET!$U$2&\", \" & unit_tariff_double_rate_p","v":"потребление, руб/м3"}]
[null,null,null,{"$f":"D21&\".2\"","v":"1.3.2.2"},{"$f":"TEHSHEET!$V$2&\", \" & unit_tariff_double_rate_c","v":"содержание,  тыс руб в месяц/м3/час"}]
["1.3.3","О",null,{"$f":"A24","v":"1.3.3"},{"$f":"\"с 01.01.2018 по 31.12.2018\" & IF(double_rate_tariff=\"да\",,\", \"&unit_tariff_single_rate)","v":"с 01.01.2018 по 31.12.2018, руб/м3"},151.19999999999999,null,"нет"]
[null,null,null,{"$f":"D24&\".1\"","v":"1.3.3.1"},{"$f":"TEHSHEET!$U$2&\", \" & unit_tariff_double_rate_p","v":"потребление, руб/м3"}]
[null,null,null,{"$f":"D24&\".2\"","v":"1.3.3.2"},{"$f":"TEHSHEET!$V$2&\", \" & unit_tariff_double_rate_c","v":"содержание,  тыс руб в месяц/м3/час"}]
[null,null,null,null,"Расчетная величина тарифов"]
[null,null,null,"1.4","Период действия тарифов",{"$f":"\"с \"&periodStart & \" по \" & periodEnd & \" гг.\"","v":"с 01.01.2016 по 31.12.2018 гг."},null,"нет"]
[null,null,null,"1.5","Сведения о долгосрочных параметрах регулирования (в случае если их установление предусмотрено выбранным методом регулирования)","http://rzd.ru/",null,"нет"]
[null,null,null,"1.6","Сведения о необходимой валовой выручке на соответствующий период, тыс руб",{"$f":"SUM(F31:F34)","v":9706.94},null,"нет"]
[null,"О",null,"1.6.1","с 01.01.2016 по 31.12.2016",3097.24,null,"нет"]
[null,"О",null,"1.6.2","с 01.01.2017 по 31.12.2017",3233.6,null,"нет"]
[null,"О",null,"1.6.3","с 01.01.2018 по 31.12.2018",3376.1,null,"нет"]
[null,null,null,null,"Добавить НВВ"]
[null,null,null,"1.7",{"$f":"\"Годовой объем отпущенной потребителям воды, \"&unit_tariff_useful_output","v":"Годовой объем отпущенной потребителям воды, тыс м3"},null,null,0]
[null,"О",null,"1.7.1","с 01.01.2016 по 31.12.2016",38.130000000000003,null,"нет"]
[null,"О",null,"1.7.2","с 01.01.2017 по 31.12.2017",38.130000000000003,null,"нет"]
[null,"О",null,"1.7.3","с 01.01.2018 по 31.12.2018",38.130000000000003,null,"нет"]
[null,null,null,null,{"$f":"\"Годовой объем отпущенной потребителям воды, \"&unit_tariff_useful_output","v":"Годовой объем отпущенной потребителям воды, тыс м3"}]
[null,null,null,"1.8","Размер экономически обоснованных расходов, не учтенных при регулировании тарифов в предыдущий период регулирования (при их наличии), определенном в соответствии с основами ценообразования в сфере водоснабжения и водоотведения, утвержденными постановлением Правительства Российской Федерации от 13.05.2013 N 406 (Официальный интернет-портал правовой информации http://www.pravo.gov.ru, 15.05.2013), тыс руб",0,null,"нет"]
[null,null,null,"1.9","Размер недополученных доходов регулируемой организацией (при их наличии), исчисленный в соответствии Основами ценообразования в сфере водоснабжения и водоотведения, утвержденными постановлением Правительства Российской Федерации от 13.05.2013 N 406 (Официальный интернет-портал правовой информации http://www.pravo.gov.ru, 15.05.2013), тыс руб",0,null,"нет"]
[null,null,null,"2","Информация о способах приобретения, стоимости и об объемах товаров, необходимых для производства регулируемых товаров и(или) оказания регулируемых услуг регулируемой организацией",null,null,0]
[null,null,null,"2.1","Сведения о правовых актах, регламентирующих правила закупки (положение о закупках) в регулируемой организации","Распоряжение ОАО \"РЖД\" №2237р от 21.10.2013 г.,  Регламент к распоряжению №2237р от 21.10.2013 г.","https://tariff.eias.ru/disclo/get_file?p_guid=b1ecff60-f952-4413-af6d-f49bd77d4d0a","нет"]
[null,null,null,"2.2","Место размещения положения о закупках регулируемой организации","http://rzd.ru/","https://tariff.eias.ru/disclo/get_file?p_guid=47272643-28ff-45d2-b44d-7f689073d571","нет"]
[null,3,null,"2.3","Cведения о планировании закупочных процедур и результатах их проведения","http://rzd.ru/","https://tariff.eias.ru/disclo/get_file?p_guid=47272643-28ff-45d2-b44d-7f689073d571","нет"]
[null,null,null,null,"Добавить сведения"]

{"sheet":"Ссылки на публикации","index":9,"n_rows":15,"n_cols":8,"rows_kept":15,"cut":false,"hidden":false,"merged":[[10,0,11,0],[10,4,10,7],[12,0,13,0],[12,4,12,7],[4,3,4,7],[5,3,5,7]]}
[]
[]
[]
[]
[null,null,null,"Ссылки на публикации"]
[null,null,null,{"$f":"IF(org=0,\"Не определено\",org)","v":"Северо-Кавказская дирекция по тепловодоснабжению структурное подразделение Центральной дирекции по тепловодоснабжению - филиала ОАО \"РЖД\""}]
[]
[]
[null,null,null,"№ п/п","Содержание","Наименование сайта","Дата размещения информации","Адрес страницы сайта в сети \"Интернет\", на которой размещена информация"]
[null,null,null,"1","2","3","4","5"]
["1",null,null,{"$f":"A11","v":"1"},"Информация о способах приобретения, стоимости и объемах товаров, необходимых для производства регулируемых товаров и (или) оказания регулируемых услуг регулируемой организацией, содержит сведения о правовых актах, регламентирующих правила закупки (положение о закупках) в регулируемой организации, а также о месте размещения положения о закупках регулируемой организации, информации о планировании конкурсных процедур и результатах их проведения (п. 25 Постановления Правительства Российской Федерации от 17 января 2013 г. N 6 \"О стандартах раскрытия информации в сфере водоснабжения и водоотведения\")                        \n\n"]
[null,null,null,{"$f":"A11&\".1\"","v":"1.1"},"Сайт организации в сети Интернет","http://skdtv.ru/","21.05.2015","http://skdtv.ru/"]
["2",null,null,{"$f":"A13","v":"2"},"Информация о предложении регулируемой организации об установлении тарифов в сфере горячего водоснабжения на очередной период регулирования (п.26 Постановления Правительства Российской Федерации от 17 января 2013 г. N 6 \"О стандартах раскрытия информации в сфере водоснабжения и водоотведения\")"]
[null,null,null,{"$f":"A13&\".1\"","v":"2.1"},"Сайт организации в сети Интернет","http://skdtv.ru/","21.05.2015","http://skdtv.ru/"]
[null,null,null,null,"Добавить"]

{"sheet":"Комментарии","index":10,"n_rows":13,"n_cols":5,"rows_kept":13,"cut":false,"hidden":false,"merged":[[6,3,6,4],[7,3,7,4]]}
[]
[]
[]
[]
[]
[]
[null,null,null,"Комментарии"]
[null,null,null,{"$f":"IF(org=0,\"Не определено\",org)","v":"Северо-Кавказская дирекция по тепловодоснабжению структурное подразделение Центральной дирекции по тепловодоснабжению - филиала ОАО \"РЖД\""}]
[]
[null,null,null,"№ п/п","Комментарий"]
[null,null,null,"1","2"]
[null,null,null,0]
[null,null,null,null,"Добавить"]

{"sheet":"Проверка","index":11,"n_rows":5,"n_cols":4,"rows_kept":5,"cut":false,"hidden":false,"merged":[[1,1,1,3]]}
[]
[null,"Результат проверки"]
[]
[null,"Ссылка","Причина","Статус"]
[null,"Стандарты!G29","Не указано значение!","Предупреждение"]

{"sheet":"AllSheetsInThisWorkbook","index":12,"n_rows":24,"n_cols":2,"rows_kept":24,"cut":false,"hidden":true,"merged":[]}
["Расчетные листы","Скрытые листы"]
["Инструкция","modProv"]
["Лог обновления","modList00"]
["Титульный","modList01"]
["Список МО","modList02"]
["Стандарты","AllSheetsInThisWorkbook"]
["Ссылки на публикации","TEHSHEET"]
["Комментарии","et_union_hor"]
["Проверка","et_union_vert"]
[null,"modInfo"]
[null,"modRegion"]
[null,"modReestr"]
[null,"modfrmReestr"]
[null,"modUpdTemplMain"]
[null,"REESTR_ORG"]
[null,"modClassifierValidate"]
[null,"modHyp"]
[null,"modList03"]
[null,"modfrmDateChoose"]
[null,"modComm"]
[null,"modThisWorkbook"]
[null,"REESTR_MO"]
[null,"modfrmReestrMR"]
[null,"modfrmCheckUpdates"]

{"sheet":"TEHSHEET","index":13,"n_rows":85,"n_cols":23,"rows_kept":85,"cut":false,"hidden":true,"merged":[[0,20,0,21],[0,19,1,19],[0,22,1,22]]}
["REGION",null,"year_list","logical","Месяц\n(MONTH)","Квартал\n(QUARTER)","Месяц\n(kind_of_publication)","Режим налогообложения\n/kind_of_NDS/","Номер СЦХВ(СЦВО)\n/SKI_number/","Единица измерения объема оказываемых услуг ГВС\n/kind_of_unit_GVS/","Метод регулирования\n/kind_of_control_method/",null,null,"версия шаблона\n (DocProp_Version)","6.0",null,null,null,"виды групп товаров\n/kind_group_rates/","Одноставочный","Двухставочный",null,"Полезный отпуск"]
["Алтайский край",null,2013,"да","январь","I квартал","На официальном сайте организации","общий","1","тыс.куб.м/сутки","метод экономически обоснованных расходов (затрат)",null,null,"код шаблона\n(DocProp_TemplateCode)","JKH.OPEN.INFO.QUARTER.GVS",null,null,null,null,null,{"$f":"IF(group_rates=$S$8,\"нагрузка\",\"потребление\")","v":"потребление"},{"$f":"IF(group_rates=$S$8,\"протяженность сети\",\"содержание\")","v":"содержание"}]
["Амурская область",null,2014,"нет","февраль","II квартал","На сайте регулирующего органа","общий с учетом освобождения от уплаты НДС","2","Гкал/час","метод индексации установленных тарифов",null,null,"сфера\n(TSphere)","ГВС",null,null,null,"единица измерения для листа Стандарты\n/unit_tariff/","руб/м3","руб/м3"," тыс руб в месяц/м3/час","тыс м3"]
["Архангельская область",null,2015,null,"март","III квартал",null,"специальный (упрощенная система налогообложения, система налогообложения для сельскохозяйственных товаропроизводителей)","3","куб.м/час","метод обеспечения доходности инвестированного капитала",null,null,"сфера(латиница)\n(TSphere_trans)","GVS",null,null,null,"тариф на питьевую воду (питьевое водоснабжение)","руб/м3","руб/м3"," тыс руб в месяц/м3/час","тыс м3"]
["Астраханская область",null,2016,null,"апрель","IV квартал",null,null,"4",null,"метод сравнения аналогов",null,null,"сфера расширено\n(TSphere_full)","горячего водоснабжения",null,null,null,"тариф на техническую воду","руб/м3","руб/м3"," тыс руб в месяц/м3/час","тыс м3"]
["Белгородская область",null,2017,null,"май",null,null,"НДС для общего режима налогообложения\n/kind_of_NDS_tariff/","5",null,"метод установления фиксированных тарифов",null,null,null,null,null,null,null,"тариф на транспортировку воды","руб/м3","руб/м3"," тыс руб в месяц/м3/час","тыс м3"]
["Брянская область",null,null,null,"июнь",null,null,"тариф указан с НДС для плательщиков НДС","6",null,"метод установления предельных тарифов",null,null,null,null,null,null,null,"тариф на подвоз воды","руб/м3","-","-","тыс м3"]
["Владимирская область",null,null,null,"июль",null,null,"тариф указан без НДС для плательщиков НДС","7",null,null,null,null,null,null,null,null,null,"тариф на подключение к централизованной системе холодного водоснабжения","-","руб/м3/час","руб/км","тыс м3"]
["Волгоградская область",null,null,null,"август",null,null,null,"8"]
["Вологодская область",null,null,null,"сентябрь",null,null,null,"9"]
["Воронежская область",null,null,null,"октябрь",null,null,"НДС для прочих режимов налогообложения\n/kind_of_NDS_tariff_etc/","10"]
["г.Байконур",null,null,null,"ноябрь",null,null,"тариф для организаций не являющихся плательщиками НДС","11"]
["г. Москва",null,null,null,"декабрь",null,null,null,"12"]
["г.Санкт-Петербург",null,null,null,null,null,null,null,"13"]
["Еврейская автономная область",null,null,null,null,null,null,null,"14"]
["Забайкальский край",null,null,null,null,null,null,null,"15"]
["Ивановская область",null,null,null,null,null,null,null,"16"]
["Иркутская область",null,null,null,null,null,null,null,"17"]
["Кабардино-Балкарская республика",null,null,null,null,null,null,null,"18"]
["Калининградская область",null,null,null,null,null,null,null,"19"]
["Калужская область",null,null,null,null,null,null,null,"20"]
["Камчатский край"]
["Карачаево-Черкесская республика"]
["Кемеровская область"]
["Кировская область"]
["Костромская область"]
["Краснодарский край"]
["Красноярский край"]
["Курганская область"]
["Курская область"]
["Ленинградская область"]
["Липецкая область"]
["Магаданская область"]
["Московская область"]
["Мурманская область"]
["Ненецкий автономный округ"]
["Нижегородская область"]
["Новгородская область"]
["Новосибирская область"]
["Омская область"]
["Оренбургская область"]
["Орловская область"]
["Пензенская область"]
["Пермский край"]
["Приморский край"]
["Псковская область"]
["Республика Адыгея"]
["Республика Алтай"]
["Республика Башкортостан"]
["Республика Бурятия"]
["Республика Дагестан"]
["Республика Ингушетия"]
["Республика Калмыкия"]
["Республика Карелия"]
["Республика Коми"]
["Республика Марий Эл"]
["Республика Мордовия"]
["Республика Саха (Якутия)"]
["Республика Северная Осетия-Алания"]
["Республика Татарстан"]
["Республика Тыва"]
["Республика Хакасия"]
["Ростовская область"]
["Рязанская область"]
["Самарская область"]
["Саратовская область"]
["Сахалинская область"]
["Свердловская область"]
["Смоленская область"]
["Ставропольский край"]
["Тамбовская область"]
["Тверская область"]
["Томская область"]
["Тульская область"]
["Тюменская область"]
["Удмуртская республика"]
["Ульяновская область"]
["Хабаровский край"]
["Ханты-Мансийский автономный округ"]
["Челябинская область"]
["Чеченская республика"]
["Чувашская республика"]
["Чукотский автономный округ"]
["Ямало-Ненецкий автономный округ"]
["Ярославская область"]

{"sheet":"et_union_hor","index":14,"n_rows":43,"n_cols":7,"rows_kept":43,"cut":false,"hidden":true,"merged":[[15,0,16,0],[3,4,4,4],[3,3,4,3],[15,4,15,7],[27,0,29,0],[27,1,29,1]]}
[]
["et_List01","et_List01_1"]
[]
[null,null,null,null,null,1]
[null,null,null,null,null,null,"Добавить МО"]
[]
[]
["et_Comm"]
[]
[]
[]
[]
["et_List03"]
[]
[]
[null,null,null,{"$f":"A16","v":0}]
[null,null,null,{"$f":"A16&\".1\"","v":".1"},"Сайт организации в сети Интернет"]
[]
[]
[]
["et_List02_1"]
[]
[null,null,null,null,{"$f":"\"с \"&periodStart & \" по \" & periodEnd","v":"с 01.01.2016 по 31.12.2018"}]
[]
[]
["et_List02_2"]
[]
[null,null,null,{"$f":"A28","v":0},{"$f":"\"с \"&periodStart & \" по \" & periodEnd & IF(double_rate_tariff=\"да\",,\", \"&unit_tariff_single_rate)","v":"с 01.01.2016 по 31.12.2018, руб/м3"}]
[null,null,null,{"$f":"D28&\".1\"","v":"0.1"},{"$f":"TEHSHEET!$U$2&\", \" & unit_tariff_double_rate_p","v":"потребление, руб/м3"}]
[null,null,null,{"$f":"D28&\".2\"","v":"0.2"},{"$f":"TEHSHEET!$V$2&\", \" & unit_tariff_double_rate_c","v":"содержание,  тыс руб в месяц/м3/час"}]
[]
[]
["et_List02_3"]
[]
[null,null,null,null,{"$f":"\"с \"&periodStart & \" по \" & periodEnd","v":"с 01.01.2016 по 31.12.2018"}]
[]
[]
["et_List02_4"]
[]
[null,null,null,null,{"$f":"\"с \"&periodStart & \" по \" & periodEnd","v":"с 01.01.2016 по 31.12.2018"}]
[]
[]
["et_List02_5"]

{"sheet":"et_union_vert","index":15,"n_rows":0,"n_cols":0,"rows_kept":0,"cut":false,"hidden":true,"merged":[]}

{"sheet":"modInfo","index":16,"n_rows":17,"n_cols":2,"rows_kept":17,"cut":false,"hidden":true,"merged":[]}
[null,"Титульный"]
[null,"Для выбора того или иного источника публикации выполните двойной щелчок по синей ячейке напротив соответствующего источника.\nВНИМАНИЕ! Если Вы снимаете галочку с пункта, то будут скрыты и очищены соответствующие строки на листе \"Ссылки на публикации\"!\n\nОпубликование перечисленных в шаблоне показателей на сайте организации в сети Интернет и в печатных изданиях не обязательно, если данный шаблон предоставлен по системе ЕИАС (региональный сегмент)."]
[null,"Обязательное опубликование на официальном сайте органа исполнительной власти субъекта Российской Федерации в области государственного регулирования тарифов (на официальном сайте органа местного самоуправления поселения или городского округа в случае передачи законом субъекта Российской Федерации полномочий по утверждению тарифов в сфере водоснабжения и водоотведения органам местного самоуправления) предусмотрено пунктом 3 (а) постановления Правительства №6 от 17.01.2013"]
[null,"Задайте период регулирования, выбрав даты начала и окончания очередного периода регулирования из календаря (иконка справа от указанной ячейки), либо введите дату непосредственно в ячейку в формате - 'ДД.ММ.ГГГГ'"]
[null,"Шаблон заполняется раздельно по каждому виду тарифа"]
[null,"Ссылки на публикации"]
[null,"Вводите адрес сайта, не нарушая цвет ячейки /если копируете гиперссылку из браузера, то выполните двойной щелчок по ячейке и только после этого можете вставить скопированный элемент/"]
[null,"Обосновывающие материалы (документы) необходимо загружать с помощью \"ЕИАС Мониторинг\". Ссылка на инструкцию по загрузке обосновывающих материалов (документов) расположена на листе 'Инструкция' в п.'Методология заполнения'.\n\nВвводите ссылку, не нарушая цвет ячейки /если копируете гиперссылку из браузера, то выполните двойной щелчок по ячейке и только после этого можете вставить скопированный элемент/."]
[null,"Если для какого-либо пункта графы 'Наименование источника (сайта или печатного издания)' информация не раскрывалась, то в соответствующем поле укажите - 'не раскрывалась'"]
[null,"Список МО"]
[null,"В случае, если тариф не дифференцируется по системам коммунальной инфраструктуры, перечислите все муниципальные районы, в которых организация осуществляет услуги холодного водоснабжения"]
[null,"В случае, если тариф не дифференцируется по системам коммунальной инфраструктуры, перечислите все муниципальные образования, в которых организация осуществляет услуги холодного водоснабжения"]
[null,"Признак дифференциации тарифа"]
[null,"В случае, если тариф не дифференцируется по системам холодного водоснабжения, укажите '1'. Введите значение от 1 до 100, чтобы указать очередной условный порядковый номер системы холодного водоснабжения"]
[null,"Стандарты"]
[null,"В качестве примечания Вы можете указать единицу измерения"]
[null,{"$f":"\"Укажите в ячейке \" & ADDRESS(ROW(Стандарты!$F$29),COLUMN(Стандарты!$F$29),4,TRUE) & \", ссылку на сведения о долгосрочных параметрах регулирования, размещенные в сети Интернет, либо укажите в ячейке \" & ADDRESS(ROW(Стандарты!$G$29),COLUMN(Стандарты!$G$29),4,TRUE) & \" ссылку на материалы Хранилища\"","v":"Укажите в ячейке F29, ссылку на сведения о долгосрочных параметрах регулирования, размещенные в сети Интернет, либо укажите в ячейке G29 ссылку на материалы Хранилища"}]

{"sheet":"modRegion","index":17,"n_rows":0,"n_cols":0,"rows_kept":0,"cut":false,"hidden":true,"merged":[]}

{"sheet":"modReestr","index":18,"n_rows":0,"n_cols":0,"rows_kept":0,"cut":false,"hidden":true,"merged":[]}

{"sheet":"modfrmReestr","index":19,"n_rows":0,"n_cols":0,"rows_kept":0,"cut":false,"hidden":true,"merged":[]}

{"sheet":"modUpdTemplMain","index":20,"n_rows":0,"n_cols":0,"rows_kept":0,"cut":false,"hidden":true,"merged":[]}

{"sheet":"REESTR_ORG","index":21,"n_rows":77,"n_cols":12,"rows_kept":77,"cut":false,"hidden":true,"merged":[]}
["№","NSRF","MR_NAME","OKTMO_MR_NAME","MO_NAME","OKTMO_NAME","RST_ORG_ID","ORG_NAME","INN_NAME","KPP_NAME","VDET_NAME"]
[1,"Ставропольский край","Город Ставрополь","07701000","Город Ставрополь","07701000","27741540","ГБУ СК «Управление по строительству и эксплуатации сооружений природоохранного назначения»","2636802148","263601001","Оказание услуг в сфере водоснабжения","VS"]
[2,"Ставропольский край","Город Ставрополь","07701000","Город Ставрополь","07701000","26371332","ГУП СК \"Ставрополькрайводоканал\"","2635040105","263401001","Оказание услуг в сфере водоснабжения","VS"]
[3,"Ставропольский край","Кировский муниципальный район","07625000","Город Новопавловск","07625101","26355176","ГУП СК ЖКХ Кировского района","2609014934","260901001","Оказание услуг в сфере водоснабжения","VS"]
[4,"Ставропольский край","Новоалександровский муниципальный район","07643000","Горьковский сельсовет","07643402","26414263","Горьковское МУП ЖКХ","2615012406","261501001","Оказание услуг в сфере водоснабжения","VS"]
[5,"Ставропольский край","Предгорный муниципальный район","07648000","Пятигорский сельсовет","07648428","26412185","ЗАО \"Пятигорская птицефабрика\"","2618016913","261801001","Оказание услуг в сфере водоснабжения и очистки сточных вод","VS"]
[6,"Ставропольский край","Курский муниципальный район","07633000","Галюгаевский сельсовет","07633404","26414239","Колхоз имени Ленина","2612000297","261201001","Оказание услуг в сфере водоснабжения","VS"]
[7,"Ставропольский край","Петровский муниципальный район","07646000","Село Благодатное","07646402","26414029","МКП \"Надежда\" МО с. Благодатное Петровского района Ставропольского края","2617013148","261701001","Оказание услуг в сфере водоснабжения","VS"]
[8,"Ставропольский край","Левокумский муниципальный район","07636000","Николо-Александровский сельсовет","07636413","27683500","МКУ \"АКВА\"","2613800112","261301001","Оказание услуг в сфере водоснабжения","VS"]
[9,"Ставропольский край","Предгорный муниципальный район","07648000","Тельмановский сельсовет","07648432","28503327","МКУ \"УЖКХ\"","2618801825","261801001","Оказание услуг в сфере водоснабжения","VS"]
[10,"Ставропольский край","Нефтекумский муниципальный район","07641000","Каясулинский сельсовет","07641410","26607132","МУП \"АКВА\" Каясулинского сельсовета","2614020796","261401001","Оказание услуг в сфере водоснабжения","VS"]
[11,"Ставропольский край","Город Ставрополь","07701000","Город Ставрополь","07701000","26379466","МУП \"ВОДОКАНАЛ\"","2633001291","263550001","Оказание услуг в сфере водоснабжения и очистки сточных вод","VS"]
[12,"Ставропольский край","Петровский муниципальный район","07646000","Село Гофицкое","07646407","26371490","МУП \"Водник\"","2617011736","261701001","Оказание услуг в сфере водоснабжения","VS"]
[13,"Ставропольский край","Нефтекумский муниципальный район","07641000","Село Ачикулак","07641402","26371474","МУП \"Водник\" МО с. Ачикулак","2614010371","261401001","Оказание услуг в сфере водоснабжения","VS"]
[14,"Ставропольский край","Предгорный муниципальный район","07648000","Тельмановский сельсовет","07648432","27682894","МУП \"Водоканал Тельмановского сельсовета\"","2618014835","261801001","Оказание услуг в сфере водоснабжения","VS"]
[15,"Ставропольский край","Нефтекумский муниципальный район","07641000","Тукуй-Мектебский сельсовет","07641422","26371477","МУП \"Водоканал\" Тукуй-Мектебского сельсовета","2614018451","261401001","Оказание услуг в сфере водоснабжения","VS"]
[16,"Ставропольский край","Новоалександровский муниципальный район","07643000","Станица Расшеватская","07643416","26371484","МУП \"Водоканал\" администрации ст. Расшеватской","2615010800","261501001","Оказание услуг в сфере водоснабжения","VS"]
[17,"Ставропольский край","Красногвардейский муниципальный район","07630000","Село Дмитриевское","07630402","26371471","МУП \"Водоканал\" села Дмитриевского","2611007620","261101001","Оказание услуг в сфере водоснабжения","VS"]
[18,"Ставропольский край","Шпаковский муниципальный район","07658000","Татарский сельсовет","07658422","28176846","МУП \"Водоканал-Т\"","2623802302","262301001","Оказание услуг в сфере водоснабжения","VS"]
[19,"Ставропольский край","Город Лермонтов","07718000","Город Лермонтов","07718000","26371507","МУП \"Горводоканал\" города Лермонтова","2629005818","262901001","Оказание услуг в сфере водоснабжения и очистки сточных вод","VS"]
[20,"Ставропольский край","Советский муниципальный район","07650000","Город Зеленокумск","07650101","26371493","МУП \"Зеленокумский водоканал\"","2619011227","261901001","Оказание услуг в сфере водоснабжения и очистки сточных вод","VS"]
[21,"Ставропольский край","Красногвардейский муниципальный район","07630000","Село Ладовская Балка","07630410","28450562","МУП \"Комбытсервис\"","2611007282","261101001","Оказание услуг в сфере водоснабжения","VS"]
[22,"Ставропольский край","Шпаковский муниципальный район","07658000","Пелагиадский сельсовет","07658416","26371497","МУП \"Коммунальник\"","2623015288","262301001","Оказание услуг в сфере водоснабжения","VS"]
[23,"Ставропольский край","Советский муниципальный район","07650000","Село Горькая Балка","07650404","26371495","МУП \"Коммунальное хозяйство села Горькая Балка\"","2619011442","261901001","Оказание услуг в сфере водоснабжения и очистки сточных вод","VS"]
[24,"Ставропольский край","Советский муниципальный район","07650000","Село Отказное","07650410","27519544","МУП \"Коммунальное хозяйство села Отказного\"","2619800045","261901001","Оказание услуг в сфере водоснабжения","VS"]
[25,"Ставропольский край","Кировский муниципальный район","07625000","Орловский сельсовет","07625417","26371470","МУП \"Коммунальщик\"","2609022692","260901001","Оказание услуг в сфере водоснабжения","VS"]
[26,"Ставропольский край","Шпаковский муниципальный район","07658000","Цимлянский сельсовет","07658428","27519585","МУП \"Коммунальщик\"","2623800665","262301001","Оказание услуг в сфере водоснабжения","VS"]
[27,"Ставропольский край","Георгиевский муниципальный район","07615000","Урухский сельсовет","07615428","26371506","МУП \"Коммунальщик\" Георгиевского района Ставропольского края","2625032842","262501001","Оказание услуг в сфере водоснабжения","VS"]
[28,"Ставропольский край","Нефтекумский муниципальный район","07641000","Кара-Тюбинский сельсовет","07641407","26371476","МУП \"Нептун\"","2614017835","261401001","Оказание услуг в сфере водоснабжения","VS"]
[29,"Ставропольский край","Советский муниципальный район","07650000","Нинский сельсовет","07650407","26371492","МУП \"Нинское коммунальное хозяйство\"","2619011202","261901001","Оказание услуг в сфере водоснабжения","VS"]
[30,"Ставропольский край","Кировский муниципальный район","07625000","Новосредненский сельсовет","07625416","26371468","МУП \"Новосредненского сельсовета \"Надежда\"","2609022928","260901001","Оказание услуг в сфере водоснабжения","VS"]
[31,"Ставропольский край","Нефтекумский муниципальный район","07641000","Зункарский сельсовет","07641405","26607172","МУП \"Оазис\"","2614020820","261401001","Оказание услуг в сфере водоснабжения","VS"]
[32,"Ставропольский край","Шпаковский муниципальный район","07658000","Дубовский сельсовет","07658406","26371500","МУП \"Прогресс\"","2623019412","262301001","Оказание услуг в сфере водоснабжения","VS"]
[33,"Ставропольский край","Петровский муниципальный район","07646000","Просянский сельсовет","07646418","28870944","МУП \"Просянское\"","2617011359","261701001","Оказание услуг в сфере водоснабжения","VS"]
[34,"Ставропольский край","Нефтекумский муниципальный район","07641000","Закумский сельсовет","07641403","26371478","МУП \"РОДНИК\"","2614018998","261401001","Оказание услуг в сфере водоснабжения","VS"]
[35,"Ставропольский край","Петровский муниципальный район","07646000","Высоцкий сельсовет","07646404","26371489","МУП \"Родник\"","2617011729","261701001","Оказание услуг в сфере водоснабжения","VS"]
[36,"Ставропольский край","Шпаковский муниципальный район","07658000","Темнолесский сельсовет","07658425","26371498","МУП \"Родник\"","2623017550","262301001","Оказание услуг в сфере водоснабжения","VS"]
[37,"Ставропольский край","Александровский муниципальный район","07602000","Калиновский сельсовет","07602407","26559950","МУП \"Родники\"","2601008544","260101001","Оказание услуг в сфере водоснабжения","VS"]
[38,"Ставропольский край","Нефтекумский муниципальный район","07641000","Новкус-Артезианский сельсовет","07641416","26371475","МУП \"Сервис\"","2614015468","261401001","Оказание услуг в сфере водоснабжения","VS"]
[39,"Ставропольский край","Минераловодский муниципальный район","07639000","Ленинский сельсовет","07639407","26371508","МУП \"Славянка\"","2630039233","263001001","Оказание услуг в сфере водоснабжения","VS"]
[40,"Ставропольский край","Советский муниципальный район","07650000","Солдато-Александровский сельсовет","07650416","26371494","МУП \"Солдато-Александровское коммунальное хозяйство\"","2619011266","261901001","Оказание услуг в сфере водоснабжения","VS"]
[41,"Ставропольский край","Петровский муниципальный район","07646000","Село Сухая Буйвола","07646422","26371491","МУП \"Сухобуйволинское\"","2617011750","261701001","Оказание услуг в сфере водоснабжения","VS"]
[42,"Ставропольский край","Петровский муниципальный район","07646000","Дон-Балковский сельсовет","07646410","26371488","МУП \"Феникс\"","2617011479","261701001","Оказание услуг в сфере водоснабжения","VS"]
[43,"Ставропольский край","Изобильненский муниципальный район","07620000","Подлужненский сельсовет","07620413","28942344","МУП ЖКХ \"Подлужное\"","2607801661","260701001","Оказание услуг в сфере водоснабжения","VS"]
[44,"Ставропольский край","Петровский муниципальный район","07646000","Константиновский сельсовет","07646413","26413814","МУП МО Константиновского сельсовета Петровского района СК \"Пчелка\"","2617013349","261701001","Оказание услуг в сфере водоснабжения","VS"]
[45,"Ставропольский край","Нефтекумский муниципальный район","07641000","Махмуд-Мектебский сельсовет","07641413","26414259","МУП МО Махмуд-Мектебского сельсовета \"Исток\"","2614019342","261401001","Оказание услуг в сфере водоснабжения","VS"]
[46,"Ставропольский край","Нефтекумский муниципальный район","07641000","Озек-Суатский сельсовет","07641419","26640775","МУП МО Озек-Суатского сельсовета \"Гарант\"","2614019014","261401001","Оказание услуг в сфере водоснабжения","VS"]
[47,"Ставропольский край","Новоселицкий муниципальный район","07644000","Поселок Щелкан","07644420","26413838","МУП ЭВ \"Водолей\"","2616007575","261601001","Оказание услуг в сфере водоснабжения","VS"]
[48,"Ставропольский край","Шпаковский муниципальный район","07658000","Верхнерусский сельсовет","07658402","26371496","МУП кх \"Верхнерусское\"","2623012008","262301001","Оказание услуг в сфере водоснабжения","VS"]
[49,"Ставропольский край","Город Невинномысск","07724000","Город Невинномысск","07724000","26379464","ОАО \"Водоканал\" г. Невинномысск","2631054308","263101001","Оказание услуг в сфере водоснабжения и очистки сточных вод","VS"]
[50,"Ставропольский край","Минераловодский муниципальный район","07639000","Город Минеральные Воды","07639101","26800337","ОАО \"Международный аэропорт Минеральные Воды\"","2630800970","263001001","Транспортировка воды","VS"]
[51,"Ставропольский край","Город Невинномысск","07724000","Город Невинномысск","07724000","26419409","ОАО \"Невинномысский Азот\"","2631015563","263101001","Оказание услуг в сфере водоснабжения","VS"]
[52,"Ставропольский край","Курский муниципальный район","07633000","Курский сельсовет","07633407","26414083","ОАО \"Нептун\"","2612000184","261201001","Оказание услуг в сфере водоснабжения","VS"]
[53,"Ставропольский край","Город Ставрополь","07701000","Город Ставрополь","07701000","27134039","ОАО \"Славянка\" (филиал \"Ставропольский\")","7702707386","263143001","Оказание услуг в сфере водоснабжения","VS"]
[54,"Ставропольский край","Город Ставрополь","07701000","Город Ставрополь","07701000","26645437","ОАО \"Ставропольнефтегеофизика\"","2634011976","263401001","Оказание услуг в сфере водоснабжения","VS"]
[55,"Ставропольский край","Изобильненский муниципальный район","07620000","Село Тищенское","07620422","27164074","ОАО \"Тищенское\"","2607017136","260701001","Оказание услуг в сфере водоснабжения","VS"]
[56,"Ставропольский край","Советский муниципальный район","07650000","Солдато-Александровский сельсовет","07650416","27662763","ООО \"АПСК\"","2619010470","261901001","Оказание услуг в сфере водоснабжения","VS"]
[57,"Ставропольский край","Буденновский муниципальный район","07612000","Орловский сельсовет","07612413","26371504","ООО \"ЖКХ Орловка\"","2624030031","262401001","Оказание услуг в сфере водоснабжения","VS"]
[58,"Ставропольский край","Курский муниципальный район","07633000","Русский сельсовет","07633422","26414057","ООО \"ИРМАГ\"","2612018858","261201001","Оказание услуг в сфере водоснабжения","VS"]
[59,"Ставропольский край","Буденновский муниципальный район","07612000","Краснооктябрьский сельсовет","07612409","26371503","ООО \"Краснооктябрьское ЖКХ\"","2624030024","262401001","Оказание услуг в сфере водоснабжения и очистки сточных вод","VS"]
[60,"Ставропольский край","","","","","26413215","ООО \"ЛУКОЙЛ-ЭНЕРГОСЕТИ\"","5260230051","525350001","Оказание услуг в сфере водоснабжения","VS"]
[61,"Ставропольский край","Город Невинномысск","07724000","Город Невинномысск","07724000","28870392","ООО \"НКК\"","2631804818","263101001","Оказание услуг в сфере водоснабжения","VS"]
[62,"Ставропольский край","Левокумский муниципальный район","07636000","Бургун-Маджарский сельсовет","07636402","26412164","ООО \"Надежда\"","2613007062","261301001","Оказание услуг в сфере водоснабжения и очистки сточных вод","VS"]
[63,"Ставропольский край","Кировский муниципальный район","07625000","Зольский сельсовет","07625404","26414003","ООО \"Нептун\"","2609021280","260901001","Оказание услуг в сфере водоснабжения","VS"]
[64,"Ставропольский край","Курский муниципальный район","07633000","Русский сельсовет","07633422","26414049","ООО \"СП \"Содружество\"","2612019820","261201001","Оказание услуг в сфере водоснабжения","VS"]
[65,"Ставропольский край","Предгорный муниципальный район","07648000","Этокский сельсовет","07648434","28033386","ООО \"Технология\"","2618020902","261801001","Оказание услуг в сфере водоснабжения","VS"]
[66,"Ставропольский край","Буденновский муниципальный район","07612000","Терский сельсовет","07612425","27338735","ООО \"колхоз Терский\"","2624032550","262401001","Оказание услуг в сфере водоснабжения","VS"]
[67,"Ставропольский край","Предгорный муниципальный район","07648000","Ессентукский сельсовет","07648413","28855808","ООО КФК \"Орбита\"","2618014190","261801001","Оказание услуг в сфере водоснабжения","VS"]
[68,"Ставропольский край","Новоалександровский муниципальный район","07643000","Красночервонный сельсовет","07643423","26371479","СПА \"Колхоз им.Ворошилова\"","2615001041","261501001","Оказание услуг в сфере водоснабжения","VS"]
[69,"Ставропольский край","Советский муниципальный район","07650000","Восточный сельсовет","07650402","26530688","СПК \"Агрофирма\" Восточное\"","2619009002","261901001","Оказание услуг в сфере водоснабжения","VS"]
[70,"Ставропольский край","Курский муниципальный район","07633000","Станица Стодеревская","07633426","26414041","СПК (колхоз) им.Кирова","2612000314","261201001","Оказание услуг в сфере водоснабжения","VS"]
[71,"Ставропольский край","Советский муниципальный район","07650000","Правокумский сельсовет","07650413","27606482","СПК колхоз \"Правокумский\"","2619009161","261901001","Оказание услуг в сфере водоснабжения","VS"]
[72,"Ставропольский край","Новоалександровский муниципальный район","07643000","Радужский сельсовет","07643412","28147219","СХЗАО \"Радуга\"","2615001161","261501001","Оказание услуг в сфере водоснабжения","VS"]
[73,"Ставропольский край","","","","","26816056","Северо-Кавказская дирекция по тепловодоснабжению структурное подразделение Центральной дирекции по тепловодоснабжению - филиала ОАО \"РЖД\"","7708503727","616745019","Оказание услуг в сфере водоснабжения","VS"]
[74,"Ставропольский край","Город Ставрополь","07701000","Город Ставрополь","07701000","26322297","Северо-Кавказский филиал ООО \"Газпром энерго\"","7736186950","263602001","Оказание услуг в сфере водоснабжения","VS"]
[75,"Ставропольский край","Курский муниципальный район","07633000","Полтавский сельсовет","07633413","28033347","ФКУ ИК-6 УФСИН России по Ставропольскому краю","2612000434","261201001","Оказание услуг в сфере водоснабжения","VS"]
[76,"Ставропольский край","Город Невинномысск","07724000","Город Невинномысск","07724000","26416944","Филиал \"Невинномысская ГРЭС\"  ОАО \"Энел Россия\"","6671156423","263102001","Оказание услуг в сфере водоснабжения","VS"]

{"sheet":"modClassifierValidate","index":22,"n_rows":0,"n_cols":0,"rows_kept":0,"cut":false,"hidden":true,"merged":[]}

{"sheet":"modHyp","index":23,"n_rows":0,"n_cols":0,"rows_kept":0,"cut":false,"hidden":true,"merged":[]}

{"sheet":"modList03","index":24,"n_rows":0,"n_cols":0,"rows_kept":0,"cut":false,"hidden":true,"merged":[]}

{"sheet":"modfrmDateChoose","index":25,"n_rows":0,"n_cols":0,"rows_kept":0,"cut":false,"hidden":true,"merged":[]}

{"sheet":"modComm","index":26,"n_rows":0,"n_cols":0,"rows_kept":0,"cut":false,"hidden":true,"merged":[]}

{"sheet":"modThisWorkbook","index":27,"n_rows":0,"n_cols":0,"rows_kept":0,"cut":false,"hidden":true,"merged":[]}

{"sheet":"REESTR_MO","index":28,"n_rows":332,"n_cols":4,"rows_kept":332,"cut":false,"hidden":true,"merged":[]}
["№","МР","МО","МО_ОКТМО"]
[1,"Александровский муниципальный район","Александровский муниципальный район","07602000"]
[2,"Александровский муниципальный район","Александровский сельсовет","07602402"]
[3,"Александровский муниципальный район","Калиновский сельсовет","07602407"]
[4,"Александровский муниципальный район","Круглолесский сельсовет","07602410"]
[5,"Александровский муниципальный район","Новокавказский сельсовет","07602413"]
[6,"Александровский муниципальный район","Саблинский сельсовет","07602416"]
[7,"Александровский муниципальный район","Село Грушевское","07602404"]
[8,"Александровский муниципальный район","Село Северное","07602419"]
[9,"Александровский муниципальный район","Средненский сельсовет","07602422"]
[10,"Андроповский муниципальный район","Андроповский муниципальный район","07632000"]
[11,"Андроповский муниципальный район","Водораздельный сельсовет","07632402"]
[12,"Андроповский муниципальный район","Казинский сельсовет","07632406"]
[13,"Андроповский муниципальный район","Красноярский сельсовет","07632407"]
[14,"Андроповский муниципальный район","Курсавский сельсовет","07632410"]
[15,"Андроповский муниципальный район","Куршавский сельсовет","07632412"]
[16,"Андроповский муниципальный район","Новоянкульский сельсовет","07632414"]
[17,"Андроповский муниципальный район","Село Крымгиреевское","07632408"]
[18,"Андроповский муниципальный район","Село Султан","07632419"]
[19,"Андроповский муниципальный район","Солуно-Дмитриевский сельсовет","07632416"]
[20,"Андроповский муниципальный район","Станица Воровсколесская","07632404"]
[21,"Андроповский муниципальный район","Янкульский сельсовет","07632422"]
[22,"Апанасенковский муниципальный район","Айгурский сельсовет","07605402"]
[23,"Апанасенковский муниципальный район","Апанасенковский муниципальный район","07605000"]
[24,"Апанасенковский муниципальный район","Дербетовский сельсовет","07605416"]
[25,"Апанасенковский муниципальный район","Село Апанасенковское","07605404"]
[26,"Апанасенковский муниципальный район","Село Белые Копани","07605407"]
[27,"Апанасенковский муниципальный район","Село Воздвиженское","07605410"]
[28,"Апанасенковский муниципальный район","Село Вознесеновское","07605413"]
[29,"Апанасенковский муниципальный район","Село Дивное","07605419"]
[30,"Апанасенковский муниципальный район","Село Киевка","07605422"]
[31,"Апанасенковский муниципальный район","Село Малая Джалга","07605425"]
[32,"Апанасенковский муниципальный район","Село Манычское","07605428"]
[33,"Апанасенковский муниципальный район","Село Рагули","07605431"]
[34,"Арзгирский муниципальный район","Арзгирский муниципальный район","07607000"]
[35,"Арзгирский муниципальный район","Арзгирский сельсовет","07607402"]
[36,"Арзгирский муниципальный район","Новоромановский сельсовет","07607404"]
[37,"Арзгирский муниципальный район","Село Каменная Балка","07607403"]
[38,"Арзгирский муниципальный район","Село Петропавловское","07607407"]
[39,"Арзгирский муниципальный район","Село Родниковское","07607410"]
[40,"Арзгирский муниципальный район","Село Садовое","07607413"]
[41,"Арзгирский муниципальный район","Село Серафимовское","07607416"]
[42,"Арзгирский муниципальный район","Чограйский сельсовет","07607422"]
[43,"Благодарненский муниципальный район","Cело Елизаветинское","07610410"]
[44,"Благодарненский муниципальный район","Александрийский сельсовет","07610402"]
[45,"Благодарненский муниципальный район","Аул Эдельбай","07610428"]
[46,"Благодарненский муниципальный район","Благодарненский муниципальный район","07610000"]
[47,"Благодарненский муниципальный район","Город Благодарный","07610101"]
[48,"Благодарненский муниципальный район","Каменнобалковский сельсовет","07610413"]
[49,"Благодарненский муниципальный район","Красноключевский сельсовет","07610416"]
[50,"Благодарненский муниципальный район","Село Алексеевское","07610404"]
[51,"Благодарненский муниципальный район","Село Бурлацкое","07610407"]
[52,"Благодарненский муниципальный район","Село Мирное","07610417"]
[53,"Благодарненский муниципальный район","Село Сотниковское","07610419"]
[54,"Благодарненский муниципальный район","Село Спасское","07610422"]
[55,"Благодарненский муниципальный район","Село Шишкино","07610427"]
[56,"Благодарненский муниципальный район","Ставропольский сельсовет","07610425"]
[57,"Благодарненский муниципальный район","Хутор Большевик","07610406"]
[58,"Буденновский муниципальный район","Архиповский сельсовет","07612404"]
[59,"Буденновский муниципальный район","Буденновский муниципальный район","07612000"]
[60,"Буденновский муниципальный район","Искровский сельсовет","07612407"]
[61,"Буденновский муниципальный район","Краснооктябрьский сельсовет","07612409"]
[62,"Буденновский муниципальный район","Новожизненский сельсовет","07612410"]
[63,"Буденновский муниципальный район","Орловский сельсовет","07612413"]
[64,"Буденновский муниципальный район","Покойненский сельсовет","07612416"]
[65,"Буденновский муниципальный район","Преображенский сельсовет","07612420"]
[66,"Буденновский муниципальный район","Село Архангельское","07612402"]
[67,"Буденновский муниципальный район","Село Прасковея","07612419"]
[68,"Буденновский муниципальный район","Село Толстово-Васюковское","07612427"]
[69,"Буденновский муниципальный район","Стародубский сельсовет","07612422"]
[70,"Буденновский муниципальный район","Терский сельсовет","07612425"]
[71,"Буденновский муниципальный район","Томузловский сельсовет","07612429"]
[72,"ГО Ставропольского края","ГО Ставропольского края","07700000"]
[73,"Георгиевский муниципальный район","Александрийский сельсовет","07615402"]
[74,"Георгиевский муниципальный район","Балковский сельсовет","07615403"]
[75,"Георгиевский муниципальный район","Георгиевский муниципальный район","07615000"]
[76,"Георгиевский муниципальный район","Крутоярский сельсовет","07615408"]
[77,"Георгиевский муниципальный район","Незлобненский сельсовет","07615413"]
[78,"Георгиевский муниципальный район","Поселок Новый","07615415"]
[79,"Георгиевский муниципальный район","Село Краснокумское","07615406"]
[80,"Георгиевский муниципальный район","Село Новозаведенное","07615416"]
[81,"Георгиевский муниципальный район","Село Обильное","07615419"]
[82,"Георгиевский муниципальный район","Станица Георгиевская","07615404"]
[83,"Георгиевский муниципальный район","Станица Лысогорская","07615410"]
[84,"Георгиевский муниципальный район","Станица Подгорная","07615422"]
[85,"Георгиевский муниципальный район","Ульяновский сельсовет","07615425"]
[86,"Георгиевский муниципальный район","Урухский сельсовет","07615428"]
[87,"Георгиевский муниципальный район","Шаумяновский сельсовет","07615431"]
[88,"Город Буденновск","Город Буденновск","07702000"]
[89,"Город Георгиевск","Город Георгиевск","07707000"]
[90,"Город Лермонтов","Город Лермонтов","07718000"]
[91,"Город Невинномысск","Город Невинномысск","07724000"]
[92,"Город Ставрополь","Город Ставрополь","07701000"]
[93,"Город-курорт Ессентуки","Город-курорт Ессентуки","07710000"]
[94,"Город-курорт Железноводск","Город-курорт Железноводск","07712000"]
[95,"Город-курорт Кисловодск","Город-курорт Кисловодск","07715000"]
[96,"Город-курорт Пятигорск","Город-курорт Пятигорск","07727000"]
[97,"Грачевский муниципальный район","Грачевский муниципальный район","07617000"]
[98,"Грачевский муниципальный район","Грачевский сельсовет","07617404"]
[99,"Грачевский муниципальный район","Красный сельсовет","07617407"]
[100,"Грачевский муниципальный район","Кугультинский сельсовет","07617410"]
[101,"Грачевский муниципальный район","Село Бешпагир","07617401"]
[102,"Грачевский муниципальный район","Село Тугулук","07617422"]
[103,"Грачевский муниципальный район","Сергиевский сельсовет","07617413"]
[104,"Грачевский муниципальный район","Спицевский сельсовет","07617416"]
[105,"Грачевский муниципальный район","Старомарьевский сельсовет","07617419"]
[106,"Изобильненский муниципальный район","Город Изобильный","07620101"]
[107,"Изобильненский муниципальный район","Изобильненский муниципальный район","07620000"]
[108,"Изобильненский муниципальный район","Каменнобродский сельсовет","07620404"]
[109,"Изобильненский муниципальный район","Московский сельсовет","07620407"]
[110,"Изобильненский муниципальный район","Новоизобильненский сельсовет","07620409"]
[111,"Изобильненский муниципальный район","Передовой сельсовет","07620412"]
[112,"Изобильненский муниципальный район","Подлужненский сельсовет","07620413"]
[113,"Изобильненский муниципальный район","Поселок Рыздвяный","07620153"]
[114,"Изобильненский муниципальный район","Поселок Солнечнодольск","07620155"]
[115,"Изобильненский муниципальный район","Рождественский сельсовет","07620416"]
[116,"Изобильненский муниципальный район","Село Птичье","07620414"]
[117,"Изобильненский муниципальный район","Село Тищенское","07620422"]
[118,"Изобильненский муниципальный район","Станица Баклановская","07620402"]
[119,"Изобильненский муниципальный район","Станица Новотроицкая","07620410"]
[120,"Изобильненский муниципальный район","Староизобильненский сельсовет","07620419"]
[121,"Изобильненский муниципальный район","Хутор Спорный","07620418"]
[122,"Ипатовский муниципальный район","Большевистский сельсовет","07622402"]
[123,"Ипатовский муниципальный район","Винодельненский сельсовет","07622410"]
[124,"Ипатовский муниципальный район","Город Ипатово","07622101"]
[125,"Ипатовский муниципальный район","Добровольно-Васильевский сельсовет","07622413"]
[126,"Ипатовский муниципальный район","Золотаревский сельсовет","07622416"]
[127,"Ипатовский муниципальный район","Ипатовский муниципальный район","07622000"]
[128,"Ипатовский муниципальный район","Кевсалинский сельсовет","07622422"]
[129,"Ипатовский муниципальный район","Красочный сельсовет","07622425"]
[130,"Ипатовский муниципальный район","Леснодачненский сельсовет","07622427"]
[131,"Ипатовский муниципальный район","Лиманский сельсовет","07622428"]
[132,"Ипатовский муниципальный район","Мало-Барханчакский сельсовет","07622429"]
[133,"Ипатовский муниципальный район","Октябрьский сельсовет","07622431"]
[134,"Ипатовский муниципальный район","Первомайский сельсовет","07622434"]
[135,"Ипатовский муниципальный район","Село Большая Джалга","07622404"]
[136,"Ипатовский муниципальный район","Село Бурукшун","07622407"]
[137,"Ипатовский муниципальный район","Советскорунный сельсовет","07622437"]
[138,"Ипатовский муниципальный район","Тахтинский сельсовет","07622440"]
[139,"Кировский муниципальный район","Горнозаводской сельсовет","07625402"]
[140,"Кировский муниципальный район","Город Новопавловск","07625101"]
[141,"Кировский муниципальный район","Зольский сельсовет","07625404"]
[142,"Кировский муниципальный район","Кировский муниципальный район","07625000"]
[143,"Кировский муниципальный район","Комсомольский сельсовет","07625407"]
[144,"Кировский муниципальный район","Новосредненский сельсовет","07625416"]
[145,"Кировский муниципальный район","Орловский сельсовет","07625417"]
[146,"Кировский муниципальный район","Посёлок Фазанный","07625428"]
[147,"Кировский муниципальный район","Советский сельсовет","07625419"]
[148,"Кировский муниципальный район","Станица Марьинская","07625410"]
[149,"Кировский муниципальный район","Старопавловский сельсовет","07625422"]
[150,"Кочубеевский муниципальный район","Балахоновский сельсовет","07628402"]
[151,"Кочубеевский муниципальный район","Барсуковский сельсовет","07628404"]
[152,"Кочубеевский муниципальный район","Васильевский сельсовет","07628440"]
[153,"Кочубеевский муниципальный район","Вревский сельсовет","07628407"]
[154,"Кочубеевский муниципальный район","Георгиевский сельсовет","07628408"]
[155,"Кочубеевский муниципальный район","Заветненский сельсовет","07628413"]
[156,"Кочубеевский муниципальный район","Ивановский сельсовет","07628416"]
[157,"Кочубеевский муниципальный район","Казьминский сельсовет","07628419"]
[158,"Кочубеевский муниципальный район","Кочубеевский муниципальный район","07628000"]
[159,"Кочубеевский муниципальный район","Мищенский сельсовет","07628423"]
[160,"Кочубеевский муниципальный район","Надзорненский сельсовет","07628424"]
[161,"Кочубеевский муниципальный район","Новодеревенский сельсовет","07628425"]
[162,"Кочубеевский муниципальный район","Село Кочубеевское","07628422"]
[163,"Кочубеевский муниципальный район","Станица Беломечетская","07628406"]
[164,"Кочубеевский муниципальный район","Стародворцовский сельсовет","07628430"]
[165,"Кочубеевский муниципальный район","Усть-Невинский сельсовет","07628435"]
[166,"Красногвардейский муниципальный район","Коммунаровский сельсовет","07630404"]
[167,"Красногвардейский муниципальный район","Красногвардейский муниципальный район","07630000"]
[168,"Красногвардейский муниципальный район","Медвеженский сельсовет","07630413"]
[169,"Красногвардейский муниципальный район","Привольненский сельсовет","07630425"]
[170,"Красногвардейский муниципальный район","Родыковский сельсовет","07630428"]
[171,"Красногвардейский муниципальный район","Село Дмитриевское","07630402"]
[172,"Красногвардейский муниципальный район","Село Красногвардейское","07630407"]
[173,"Красногвардейский муниципальный район","Село Ладовская Балка","07630410"]
[174,"Красногвардейский муниципальный район","Село Новомихайловское","07630416"]
[175,"Красногвардейский муниципальный район","Село Покровское","07630419"]
[176,"Красногвардейский муниципальный район","Село Преградное","07630422"]
[177,"Красногвардейский муниципальный район","Штурмовский сельсовет","07630443"]
[178,"Курский муниципальный район","Балтийский сельсовет","07633402"]
[179,"Курский муниципальный район","Галюгаевский сельсовет","07633404"]
[180,"Курский муниципальный район","Кановский сельсовет","07633406"]
[181,"Курский муниципальный район","Курский муниципальный район","07633000"]
[182,"Курский муниципальный район","Курский сельсовет","07633407"]
[183,"Курский муниципальный район","Мирненский сельсовет","07633410"]
[184,"Курский муниципальный район","Полтавский сельсовет","07633413"]
[185,"Курский муниципальный район","Ростовановский сельсовет","07633416"]
[186,"Курский муниципальный район","Рощинский сельсовет","07633419"]
[187,"Курский муниципальный район","Русский сельсовет","07633422"]
[188,"Курский муниципальный район","Село Эдиссия","07633428"]
[189,"Курский муниципальный район","Серноводский сельсовет","07633425"]
[190,"Курский муниципальный район","Станица Стодеревская","07633426"]
[191,"Левокумский муниципальный район","Бургун-Маджарский сельсовет","07636402"]
[192,"Левокумский муниципальный район","Величаевский сельсовет","07636404"]
[193,"Левокумский муниципальный район","Владимировский сельсовет","07636407"]
[194,"Левокумский муниципальный район","Заринский сельсовет","07636409"]
[195,"Левокумский муниципальный район","Левокумский муниципальный район","07636000"]
[196,"Левокумский муниципальный район","Николо-Александровский сельсовет","07636413"]
[197,"Левокумский муниципальный район","Поселок Новокумский","07636414"]
[198,"Левокумский муниципальный район","Село Левокумское","07636410"]
[199,"Левокумский муниципальный район","Село Правокумское","07636416"]
[200,"Левокумский муниципальный район","Село Приозерское","07636417"]
[201,"Левокумский муниципальный район","Село Урожайное","07636422"]
[202,"Левокумский муниципальный район","Турксадский сельсовет","07636419"]
[203,"Минераловодский муниципальный район","Город Минеральные Воды","07639101"]
[204,"Минераловодский муниципальный район","Гражданский сельсовет","07639402"]
[205,"Минераловодский муниципальный район","Левокумский сельсовет","07639421"]
[206,"Минераловодский муниципальный район","Ленинский сельсовет","07639407"]
[207,"Минераловодский муниципальный район","Марьино-Колодцевский сельсовет","07639410"]
[208,"Минераловодский муниципальный район","Минераловодский муниципальный район","07639000"]
[209,"Минераловодский муниципальный район","Нижнеалександровский сельсовет","07639416"]
[210,"Минераловодский муниципальный район","Первомайский сельсовет","07639418"]
[211,"Минераловодский муниципальный район","Перевальненский сельсовет","07639420"]
[212,"Минераловодский муниципальный район","Побегайловский сельсовет","07639419"]
[213,"Минераловодский муниципальный район","Поселок Анджиевский","07639152"]
[214,"Минераловодский муниципальный район","Прикумский сельсовет","07639422"]
[215,"Минераловодский муниципальный район","Розовский сельсовет","07639425"]
[216,"Минераловодский муниципальный район","Село Греческое","07639404"]
[217,"Минераловодский муниципальный район","Село Нагутское","07639413"]
[218,"Минераловодский муниципальный район","Ульяновский сельсовет","07639430"]
[219,"Нефтекумский муниципальный район","Город Нефтекумск","07641101"]
[220,"Нефтекумский муниципальный район","Закумский сельсовет","07641403"]
[221,"Нефтекумский муниципальный район","Зимнеставочный сельсовет","07641404"]
[222,"Нефтекумский муниципальный район","Зункарский сельсовет","07641405"]
[223,"Нефтекумский муниципальный район","Кара-Тюбинский сельсовет","07641407"]
[224,"Нефтекумский муниципальный район","Каясулинский сельсовет","07641410"]
[225,"Нефтекумский муниципальный район","Махмуд-Мектебский сельсовет","07641413"]
[226,"Нефтекумский муниципальный район","Нефтекумский муниципальный район","07641000"]
[227,"Нефтекумский муниципальный район","Новкус-Артезианский сельсовет","07641416"]
[228,"Нефтекумский муниципальный район","Озек-Суатский сельсовет","07641419"]
[229,"Нефтекумский муниципальный район","Поселок Затеречный","07641153"]
[230,"Нефтекумский муниципальный район","Село Ачикулак","07641402"]
[231,"Нефтекумский муниципальный район","Тукуй-Мектебский сельсовет","07641422"]
[232,"Новоалександровский муниципальный район","Город Новоалександровск","07643101"]
[233,"Новоалександровский муниципальный район","Горьковский сельсовет","07643402"]
[234,"Новоалександровский муниципальный район","Григорополисский сельсовет","07643404"]
[235,"Новоалександровский муниципальный район","Краснозоринский сельсовет","07643407"]
[236,"Новоалександровский муниципальный район","Красночервонный сельсовет","07643423"]
[237,"Новоалександровский муниципальный район","Новоалександровский муниципальный район","07643000"]
[238,"Новоалександровский муниципальный район","Присадовый сельсовет","07643410"]
[239,"Новоалександровский муниципальный район","Радужский сельсовет","07643412"]
[240,"Новоалександровский муниципальный район","Раздольненский сельсовет","07643413"]
[241,"Новоалександровский муниципальный район","Светлинский сельсовет","07643417"]
[242,"Новоалександровский муниципальный район","Станица Кармалиновская","07643406"]
[243,"Новоалександровский муниципальный район","Станица Расшеватская","07643416"]
[244,"Новоалександровский муниципальный район","Темижбекский сельсовет","07643419"]
[245,"Новоселицкий муниципальный район","Журавский сельсовет","07644404"]
[246,"Новоселицкий муниципальный район","Новомаякский сельсовет","07644409"]
[247,"Новоселицкий муниципальный район","Новоселицкий муниципальный район","07644000"]
[248,"Новоселицкий муниципальный район","Поселок Щелкан","07644420"]
[249,"Новоселицкий муниципальный район","Село Долиновка","07644402"]
[250,"Новоселицкий муниципальный район","Село Китаевское","07644407"]
[251,"Новоселицкий муниципальный район","Село Новоселицкое","07644410"]
[252,"Новоселицкий муниципальный район","Село Падинское","07644412"]
[253,"Новоселицкий муниципальный район","Село Чернолесское","07644413"]
[254,"Петровский муниципальный район","Высоцкий сельсовет","07646404"]
[255,"Петровский муниципальный район","Город Светлоград","07646101"]
[256,"Петровский муниципальный район","Дон-Балковский сельсовет","07646410"]
[257,"Петровский муниципальный район","Константиновский сельсовет","07646413"]
[258,"Петровский муниципальный район","Петровский муниципальный район","07646000"]
[259,"Петровский муниципальный район","Прикалаусский сельсовет","07646417"]
[260,"Петровский муниципальный район","Просянский сельсовет","07646418"]
[261,"Петровский муниципальный район","Рогато-Балковский сельсовет","07646419"]
[262,"Петровский муниципальный район","Село Благодатное","07646402"]
[263,"Петровский муниципальный район","Село Гофицкое","07646407"]
[264,"Петровский муниципальный район","Село Николина Балка","07646416"]
[265,"Петровский муниципальный район","Село Сухая Буйвола","07646422"]
[266,"Петровский муниципальный район","Село Шведино","07646428"]
[267,"Петровский муниципальный район","Шангалинский сельсовет","07646425"]
[268,"Предгорный муниципальный район","Винсадский сельсовет","07648410"]
[269,"Предгорный муниципальный район","Ессентукский сельсовет","07648413"]
[270,"Предгорный муниципальный район","Нежинский сельсовет","07648416"]
[271,"Предгорный муниципальный район","Новоблагодарненский сельсовет","07648422"]
[272,"Предгорный муниципальный район","Подкумский сельсовет","07648424"]
[273,"Предгорный муниципальный район","Поселок Мирный","07648415"]
[274,"Предгорный муниципальный район","Предгорный муниципальный район","07648000"]
[275,"Предгорный муниципальный район","Пригородный сельсовет","07648425"]
[276,"Предгорный муниципальный район","Пятигорский сельсовет","07648428"]
[277,"Предгорный муниципальный район","Станица Бекешевская","07648402"]
[278,"Предгорный муниципальный район","Станица Боргустанская","07648407"]
[279,"Предгорный муниципальный район","Суворовский сельсовет","07648431"]
[280,"Предгорный муниципальный район","Тельмановский сельсовет","07648432"]
[281,"Предгорный муниципальный район","Этокский сельсовет","07648434"]
[282,"Предгорный муниципальный район","Юцкий сельсовет","07648437"]
[283,"Предгорный муниципальный район","Яснополянский сельсовет","07648440"]
[284,"Советский муниципальный район","Восточный сельсовет","07650402"]
[285,"Советский муниципальный район","Город Зеленокумск","07650101"]
[286,"Советский муниципальный район","Нинский сельсовет","07650407"]
[287,"Советский муниципальный район","Правокумский сельсовет","07650413"]
[288,"Советский муниципальный район","Село Горькая Балка","07650404"]
[289,"Советский муниципальный район","Село Отказное","07650410"]
[290,"Советский муниципальный район","Советский муниципальный район","07650000"]
[291,"Советский муниципальный район","Солдато-Александровский сельсовет","07650416"]
[292,"Степновский муниципальный район","Богдановский сельсовет","07652402"]
[293,"Степновский муниципальный район","Варениковский сельсовет","07652404"]
[294,"Степновский муниципальный район","Верхнестепновский сельсовет","07652407"]
[295,"Степновский муниципальный район","Иргаклинский сельсовет","07652410"]
[296,"Степновский муниципальный район","Ольгинский сельсовет","07652415"]
[297,"Степновский муниципальный район","Село Соломенское","07652420"]
[298,"Степновский муниципальный район","Степновский муниципальный район","07652000"]
[299,"Степновский муниципальный район","Степновский сельсовет","07652426"]
[300,"Труновский муниципальный район","Безопасненский сельсовет","07654402"]
[301,"Труновский муниципальный район","Донской сельсовет","07654404"]
[302,"Труновский муниципальный район","Кировский сельсовет","07654407"]
[303,"Труновский муниципальный район","Село Новая Кугульта","07654410"]
[304,"Труновский муниципальный район","Село Подлесное","07654413"]
[305,"Труновский муниципальный район","Труновский муниципальный район","07654000"]
[306,"Труновский муниципальный район","Труновский сельсовет","07654416"]
[307,"Туркменский муниципальный район","Владимировский сельсовет","07656401"]
[308,"Туркменский муниципальный район","Кендже-Кулакский сельсовет","07656407"]
[309,"Туркменский муниципальный район","Красноманычский сельсовет","07656410"]
[310,"Туркменский муниципальный район","Куликово-Копанский сельсовет","07656413"]
[311,"Туркменский муниципальный район","Кучерлинский сельсовет","07656416"]
[312,"Туркменский муниципальный район","Летнеставочный сельсовет","07656419"]
[313,"Туркменский муниципальный район","Новокучерлинский сельсовет","07656424"]
[314,"Туркменский муниципальный район","Овощинский сельсовет","07656426"]
[315,"Туркменский муниципальный район","Село Казгулак","07656402"]
[316,"Туркменский муниципальный район","Село Камбулат","07656404"]
[317,"Туркменский муниципальный район","Село Малые Ягуры","07656422"]
[318,"Туркменский муниципальный район","Туркменский муниципальный район","07656000"]
[319,"Шпаковский муниципальный район","Верхнерусский сельсовет","07658402"]
[320,"Шпаковский муниципальный район","Город Михайловск","07658101"]
[321,"Шпаковский муниципальный район","Деминский сельсовет","07658404"]
[322,"Шпаковский муниципальный район","Дубовский сельсовет","07658406"]
[323,"Шпаковский муниципальный район","Казинский сельсовет","07658408"]
[324,"Шпаковский муниципальный район","Надеждинский сельсовет","07658410"]
[325,"Шпаковский муниципальный район","Пелагиадский сельсовет","07658416"]
[326,"Шпаковский муниципальный район","Сенгилеевский сельсовет","07658419"]
[327,"Шпаковский муниципальный район","Станица Новомарьевская","07658413"]
[328,"Шпаковский муниципальный район","Татарский сельсовет","07658422"]
[329,"Шпаковский муниципальный район","Темнолесский сельсовет","07658425"]
[330,"Шпаковский муниципальный район","Цимлянский сельсовет","07658428"]
[331,"Шпаковский муниципальный район","Шпаковский муниципальный район","07658000"]

{"sheet":"modfrmReestrMR","index":29,"n_rows":0,"n_cols":0,"rows_kept":0,"cut":false,"hidden":true,"merged":[]}

{"sheet":"modfrmCheckUpdates","index":30,"n_rows":0,"n_cols":0,"rows_kept":0,"cut":false,"hidden":true,"merged":[]}